bitfinex/quotes_BTCUSD_20250505
["timestamp","ask_amount","ask_price","bid_price","bid_amount"]
[1746435384801,4.22751708,94833.0,94832.0,2.99197727]
[1746435385014,4.21375608,94833.0,94832.0,2.99197727]
[1746435385341,4.19722035,94833.0,94832.0,2.99197727]
[1746435385542,4.18456235,94833.0,94832.0,2.99197727]
[1746435385755,3.90200835,94833.0,94832.0,2.99197727]
[1746435388526,3.91854412,94833.0,94832.0,2.99197727]
[1746435390837,4.02406441,94833.0,94832.0,2.99197727]
[1746435391798,3.91854412,94833.0,94832.0,2.97567727]
[1746435392426,3.91854412,94833.0,94832.0,2.96057727]
[1746435395688,3.90200835,94833.0,94832.0,2.96057727]
[1746435398640,3.9185442,94833.0,94832.0,2.96057727]
[1746435399143,3.9185442,94833.0,94832.0,2.94404143]
[1746435399732,5.0420162,94833.0,94832.0,2.94404143]
[1746435399908,3.1947612,94833.0,94832.0,2.94404143]
[1746435400113,5.7237772,94833.0,94832.0,2.94404143]
[1746435402036,4.6003052,94833.0,94832.0,2.94404143]
[1746435402207,4.64508313,94833.0,94832.0,2.94404143]
[1746435402407,4.6003052,94833.0,94832.0,2.94404143]
[1746435405517,4.58376935,94833.0,94832.0,2.94404143]
[1746435408786,4.60030517,94833.0,94832.0,2.94404143]
[1746435409488,3.56528317,94833.0,94832.0,2.94404143]
[1746435410033,3.56528317,94833.0,94832.0,2.92750548]
[1746435410522,3.56528317,94833.0,94832.0,2.97750548]
[1746435415387,3.54874735,94833.0,94832.0,2.97750548]
[1746435415853,3.54874735,94833.0,94832.0,2.99370548]
[1746435417969,3.54874735,94833.0,94832.0,2.97750548]
[1746435418368,2.05475335,94833.0,94832.0,2.97750548]
[1746435418711,4.82339544,94833.0,94832.0,2.97750548]
[1746435422063,4.92891573,94833.0,94832.0,2.97750548]
[1746435423192,4.82339544,94833.0,94832.0,2.97750548]
[1746435430647,4.87210221,94833.0,94832.0,2.96803548]
[1746435430798,4.85556612,94833.0,94832.0,2.96803548]
[1746435431575,4.87534356,94833.0,94832.0,2.96803548]
[1746435431789,4.98086385,94833.0,94832.0,2.96803548]
[1746435432001,4.99739988,94833.0,94832.0,2.96803548]
[1746435432199,4.94869311,94833.0,94832.0,2.96803548]
[1746435432405,4.84317282,94833.0,94832.0,2.96803548]
[1746435433243,3.19599282,94833.0,94832.0,2.96803548]
[1746435433446,3.17621538,94833.0,94832.0,2.96803548]
[1746435433647,3.17621538,94833.0,94832.0,2.98303548]
[1746435438083,3.15967935,94833.0,94832.0,2.98303548]
[1746435438953,3.15967935,94833.0,94832.0,2.96803548]
[1746435441080,3.17621461,94833.0,94832.0,2.96803548]
[1746435445734,3.15967935,94833.0,94832.0,2.96803548]
[1746435448405,3.17945481,94833.0,94832.0,2.96803548]
[1746435448830,3.19599047,94833.0,94832.0,2.96803548]
[1746435450712,3.17621501,94833.0,94832.0,2.96803548]
[1746435452568,2.05674816,94833.0,94832.0,2.99993548]
[1746435452737,1.70674816,94833.0,94832.0,3.00093548]
[1746435453524,1.20674816,94833.0,94832.0,3.00093548]
[1746435453644,1.54574816,94833.0,94832.0,3.00093548]
[1746435453857,1.51398216,94833.0,94832.0,3.00093548]
[1746435454057,1.51498216,94833.0,94832.0,3.00093548]
[1746435454822,1.50098216,94833.0,94832.0,3.00093548]
[1746435455503,1.51498216,94833.0,94832.0,3.00093548]
[1746435455866,1.50098216,94833.0,94832.0,3.00093548]
[1746435456074,1.51298216,94833.0,94832.0,3.00193548]
[1746435456278,1.51198216,94833.0,94832.0,3.00193548]
[1746435456488,1.4954465,94833.0,94832.0,3.00193548]
[1746435456804,1.4964465,94833.0,94832.0,3.00193548]
[1746435457047,1.4954465,94833.0,94832.0,3.00193548]
[1746435457466,1.4964465,94833.0,94832.0,3.00193548]
[1746435457735,1.4844465,94833.0,94832.0,3.00093548]
[1746435458027,1.4954465,94833.0,94832.0,3.00093548]
[1746435458228,1.4954465,94833.0,94832.0,3.10645577]
[1746435458434,1.4954465,94833.0,94832.0,3.00093548]
[1746435459089,1.4656707,94833.0,94832.0,3.00093548]
[1746435459502,1.48220389,94833.0,94832.0,3.00093548]
[1746435465601,1.4656707,94833.0,94832.0,3.00093548]
[1746435468650,1.48220381,94833.0,94832.0,3.00093548]
[1746435470386,1.13304381,94833.0,94832.0,3.00093548]
[1746435471512,1.13304381,94833.0,94832.0,3.10645577]
[1746435471736,1.13304381,94833.0,94832.0,3.00093548]
[1746435482434,1.15281189,94833.0,94832.0,3.00093548]
[1746435482604,1.15181189,94833.0,94832.0,3.00093548]
[1746435482804,1.14181189,94833.0,94832.0,3.00093548]
[1746435483315,1.15081189,94833.0,94832.0,3.00093548]
[1746435483742,1.13104381,94833.0,94832.0,3.00093548]
[1746435484302,1.13104381,94833.0,94832.0,3.10645577]
[1746435484731,1.13004381,94833.0,94832.0,3.10645577]
[1746435485296,1.13104381,94833.0,94832.0,3.10745577]
[1746435487376,0.71724381,94833.0,94832.0,3.10745577]
[1746435492605,0.71724381,94833.0,94832.0,3.00193548]
[1746435493573,0.73699711,94833.0,94832.0,3.00193548]
[1746435497031,0.73699711,94833.0,94832.0,2.98563548]
[1746435499077,0.73699711,94833.0,94832.0,2.97003548]
[1746435499864,0.73699711,94833.0,94832.0,2.98663548]
[1746435500528,0.73699711,94833.0,94832.0,2.97003548]
[1746435501571,0.73699711,94833.0,94832.0,2.98553548]
[1746435503235,0.73699711,94833.0,94832.0,2.97003548]
[1746435504483,0.73699711,94833.0,94832.0,2.98633548]
[1746435505794,0.73699711,94833.0,94832.0,3.09185577]
[1746435507731,0.73699711,94833.0,94832.0,2.98633548]
[1746435508737,0.720464,94833.0,94832.0,2.98633548]
[1746435511658,0.73699594,94833.0,94832.0,2.98633548]
[1746435516492,0.73699594,94833.0,94832.0,2.97003548]
[1746435518108,0.720464,94833.0,94832.0,2.97003548]
[1746435519470,0.720464,94833.0,94832.0,3.07555577]
[1746435520298,0.73699594,94833.0,94832.0,3.07555577]
[1746435521317,0.73699594,94833.0,94832.0,2.97003548]
[1746435522753,0.73699594,94833.0,94832.0,2.98563548]
[1746435523686,0.71724264,94833.0,94832.0,2.98563548]
[1746435528638,0.7007107,94833.0,94832.0,2.98563548]
[1746435530797,0.7007107,94833.0,94832.0,2.97003548]
[1746435531398,0.71724187,94833.0,94832.0,2.97003548]
[1746435534844,0.73701692,94833.0,94832.0,2.97003548]
[1746435542474,0.73701692,94833.0,94832.0,2.96984869]
[1746435559213,0.73701692,94833.0,94832.0,3.07536898]
[1746435559422,0.73701692,94833.0,94832.0,2.96984869]
[1746435564090,0.71724187,94833.0,94832.0,2.96984869]
[1746435564383,0.73702031,94833.0,94832.0,2.96984869]
[1746435584046,0.71724187,94833.0,94832.0,2.96984869]
[1746435586088,0.71724187,94833.0,94832.0,3.07536898]
[1746435587057,0.71724187,94833.0,94832.0,2.96984869]
[1746435601833,0.7007107,94833.0,94832.0,2.96984869]
[1746435602268,0.7007107,94833.0,94832.0,3.00054869]
[1746435603221,0.6997107,94833.0,94832.0,2.99954869]
[1746435603437,0.7007107,94833.0,94832.0,3.00154869]
[1746435603652,0.7007107,94833.0,94832.0,3.10706898]
[1746435604581,0.6917107,94833.0,94832.0,3.10706898]
[1746435604778,0.6957107,94833.0,94832.0,3.10806898]
[1746435604986,0.6957107,94833.0,94832.0,3.15806898]
[1746435605231,0.6957107,94833.0,94832.0,3.10806898]
[1746435605431,0.6957107,94833.0,94832.0,3.45806898]
[1746435606679,0.6957107,94833.0,94832.0,3.35254869]
[1746435609472,0.71224038,94833.0,94832.0,3.35254869]
[1746435611444,0.71218767,94833.0,94832.0,3.35254869]
[1746435625584,0.71218767,94833.0,94832.0,3.33694869]
[1746435630087,0.71218767,94833.0,94832.0,3.32184869]
[1746435630225,0.71218767,94833.0,94832.0,3.42736898]
[1746435630429,0.71218767,94833.0,94832.0,3.37736898]
[1746435630632,0.71218767,94833.0,94832.0,3.42736898]
[1746435636537,0.69565799,94833.0,94832.0,3.42736898]
[1746435636716,0.68620526,94833.0,94832.0,3.42736898]
[1746435639618,0.7027348,94833.0,94832.0,3.42736898]
[1746435645349,0.7027348,94833.0,94832.0,3.37736898]
[1746435645567,0.7027348,94833.0,94832.0,3.42736898]
[1746435651540,0.7027348,94833.0,94832.0,3.32184869]
[1746435667245,0.7538348,94833.0,94832.0,2.97184869]
[1746435667689,0.76697879,94833.0,94832.0,2.97184869]
[1746435668344,0.76597879,94833.0,94832.0,2.96984869]
[1746435668553,0.76197879,94833.0,94832.0,2.96884869]
[1746435668756,0.76297879,94833.0,94832.0,2.97384869]
[1746435668909,0.76897879,94833.0,94832.0,2.97484869]
[1746435669920,0.76797879,94833.0,94832.0,2.96984869]
[1746435670150,0.76897879,94833.0,94832.0,2.97384869]
[1746435670738,0.76297879,94833.0,94832.0,2.97284869]
[1746435670944,0.76697879,94833.0,94832.0,2.97284869]
[1746435675435,0.76679953,94833.0,94832.0,2.97284869]
[1746435676291,0.737126,94833.0,94832.0,2.97284869]
[1746435685359,0.706026,94833.0,94832.0,2.97284869]
[1746435685569,0.737526,94833.0,94832.0,2.97284869]
[1746435689846,0.75405751,94833.0,94832.0,2.97284869]
[1746435694581,0.78364548,94833.0,94832.0,2.97284869]
[1746435695914,0.76711397,94833.0,94832.0,2.97284869]
[1746435698985,0.78364553,94833.0,94832.0,2.97284869]
[1746435700455,0.77382373,94833.0,94832.0,2.97284869]
[1746435709400,0.75742373,94833.0,94832.0,2.97284869]
[1746435712205,0.74232373,94833.0,94832.0,2.97284869]
[1746435712415,0.74216556,94833.0,94832.0,2.97284869]
[1746435715731,0.73204981,94833.0,94832.0,2.97284869]
[1746435722896,0.74834981,94833.0,94832.0,2.97284869]
[1746435723535,0.76434981,94833.0,94832.0,2.97284869]
[1746435724546,0.74834981,94833.0,94832.0,2.97284869]
[1746435724725,0.73204981,94833.0,94832.0,2.97284869]
[1746435728095,0.73204981,94833.0,94832.0,3.07836898]
[1746435728298,0.70368109,94833.0,94832.0,3.11076898]
[1746435729285,0.70368109,94833.0,94832.0,3.00524869]
[1746435732307,0.67409312,94833.0,94832.0,3.00524869]
[1746435734489,0.67409312,94833.0,94832.0,2.98934869]
[1746435734814,0.62254091,94833.0,94832.0,2.98934869]
[1746435735987,0.62254091,94833.0,94832.0,2.97284869]
[1746435737161,0.62254091,94833.0,94832.0,3.07836898]
[1746435737565,0.62254091,94833.0,94832.0,2.97184869]
[1746435737938,0.62254091,94833.0,94832.0,2.97284869]
[1746435738323,0.65217922,94833.0,94832.0,2.97284869]
[1746435738643,0.68487922,94833.0,94832.0,2.97284869]
[1746435739199,0.66867922,94833.0,94832.0,2.97284869]
[1746435739946,0.65217922,94833.0,94832.0,2.97284869]
[1746435743765,0.68517922,94833.0,94832.0,2.97284869]
[1746435744361,2.35352922,94833.0,94832.0,2.97284869]
[1746435744562,2.17337222,94833.0,94832.0,2.97284869]
[1746435745668,1.86966722,94833.0,94832.0,2.97284869]
[1746435745893,1.62489722,94833.0,94832.0,2.97284869]
[1746435751268,1.11532722,94833.0,94832.0,2.97284869]
[1746435752216,1.09882722,94833.0,94832.0,2.97284869]
[1746435753722,1.24926322,94833.0,94832.0,2.97284869]
[1746435753953,1.38282322,94833.0,94832.0,2.97284869]
[1746435754710,1.24926322,94833.0,94832.0,2.97284869]
[1746435754940,1.26902179,94833.0,94832.0,2.97284869]
[1746435755590,1.25252179,94833.0,94832.0,2.97284869]
[1746435756349,1.02098879,94833.0,94832.0,2.97284869]
[1746435756577,1.00646079,94833.0,94832.0,2.97284869]
[1746435757623,0.90059679,94833.0,94832.0,2.97284869]
[1746435757829,0.83103979,94833.0,94832.0,2.97284869]
[1746435758129,0.83103979,94833.0,94832.0,2.97068869]
[1746435758735,0.81128122,94833.0,94832.0,2.97068869]
[1746435761150,0.81128122,94833.0,94832.0,2.97050943]
[1746435763021,0.81128122,94833.0,94832.0,3.07602972]
[1746435764283,0.81128122,94833.0,94832.0,2.97050943]
[1746435764714,0.65217922,94833.0,94832.0,2.97050943]
[1746435765046,0.81128122,94833.0,94832.0,2.97050943]
[1746435767922,0.83105289,94833.0,94832.0,2.97050943]
[1746435775278,0.67195089,94833.0,94832.0,2.97050943]
[1746435775481,0.83089689,94833.0,94832.0,2.97050943]
[1746435783102,1.17985689,94833.0,94832.0,2.97050943]
[1746435786342,1.02091089,94833.0,94832.0,2.97050943]
[1746435787348,1.02091089,94833.0,94832.0,2.98660943]
[1746435788915,1.00113922,94833.0,94832.0,2.98660943]
[1746435789116,1.00113922,94833.0,94832.0,3.00140943]
[1746435789251,0.98460766,94833.0,94832.0,3.00140943]
[1746435789453,1.00113864,94833.0,94832.0,3.00140943]
[1746435793443,1.00113864,94833.0,94832.0,2.98630943]
[1746435796100,1.00113864,94833.0,94832.0,2.97050943]
[1746435796578,1.03288464,94833.0,94832.0,2.97050943]
[1746435797651,1.01635366,94833.0,94832.0,2.97050943]
[1746435808132,1.01585626,94833.0,94832.0,2.97050943]
[1746435816914,2.40427926,94833.0,94832.0,2.97050943]
[1746435817147,2.81807926,94833.0,94832.0,2.97050943]
[1746435817346,2.78807926,94833.0,94832.0,2.97050943]
[1746435818462,2.71238126,94833.0,94832.0,2.96650943]
[1746435818660,2.71338126,94833.0,94832.0,2.96650943]
[1746435819068,2.70938126,94833.0,94832.0,2.96650943]
[1746435819277,2.71738126,94833.0,94832.0,2.96650943]
[1746435819633,2.98583426,94833.0,94832.0,2.96750943]
[1746435819833,3.0113661,94833.0,94832.0,2.96750943]
[1746435820019,2.1939131,94833.0,94832.0,2.96750943]
[1746435820225,2.0660431,94833.0,94832.0,2.96750943]
[1746435821072,2.0375241,94833.0,94832.0,2.96750943]
[1746435821246,2.0062241,94833.0,94832.0,2.96698943]
[1746435821458,1.6955181,94833.0,94832.0,2.96698943]
[1746435822869,1.7114181,94833.0,94832.0,2.96698943]
[1746435825934,1.7279181,94833.0,94832.0,2.96698943]
[1746435829046,1.83343839,94833.0,94832.0,2.96698943]
[1746435829204,1.7279181,94833.0,94832.0,2.96698943]
[1746435833749,1.7114181,94833.0,94832.0,2.96698943]
[1746435833958,1.6955181,94833.0,94832.0,2.96698943]
[1746435834550,1.7120181,94833.0,94832.0,2.96698943]
[1746435834972,1.6955181,94833.0,94832.0,2.96698943]
[1746435835930,1.67898626,94833.0,94832.0,2.96698943]
[1746435837703,1.41365626,94833.0,94832.0,2.96698943]
[1746435855812,1.31314431,94833.0,94832.0,2.96698943]
[1746435856014,1.52404136,94833.0,94832.0,2.96698943]
[1746435869450,1.62956165,94833.0,94832.0,2.96698943]
[1746435869652,2.72395621,94833.0,94832.0,2.96698943]
[1746435869861,2.75575621,94833.0,94832.0,2.96698943]
[1746435870770,2.70788536,94833.0,94832.0,2.96698943]
[1746435871101,2.69168536,94833.0,94832.0,2.96698943]
[1746435871742,1.65344536,94833.0,94832.0,2.96698943]
[1746435871939,1.62534536,94833.0,94832.0,2.96698943]
[1746435874967,1.86392236,94833.0,94832.0,2.96698943]
[1746435876195,1.88369114,94833.0,94832.0,2.96698943]
[1746435880423,1.98921143,94833.0,94832.0,2.96698943]
[1746435880628,1.88369114,94833.0,94832.0,2.96698943]
[1746435885322,1.54381014,94833.0,94832.0,2.96698943]
[1746435885638,2.28131714,94833.0,94832.0,2.96698943]
[1746435885842,2.28113793,94833.0,94832.0,2.96698943]
[1746435888563,2.15732693,94833.0,94832.0,2.96698943]
[1746435896453,1.54363093,94833.0,94832.0,2.96698943]
[1746435896664,2.39487493,94833.0,94832.0,2.96698943]
[1746435897789,2.26509793,94833.0,94832.0,2.96698943]
[1746435909859,2.05420088,94833.0,94832.0,2.96698943]
[1746435910259,1.33273388,94833.0,94832.0,2.96698943]
[1746435910598,2.09346788,94833.0,94832.0,2.96698943]
[1746435910799,2.30436493,94833.0,94832.0,2.96698943]
[1746435911733,2.26477993,94833.0,94832.0,2.96698943]
[1746435912728,2.15727093,94833.0,94832.0,2.96698943]
[1746435912937,1.93220693,94833.0,94832.0,2.96698943]
[1746435921130,1.54363093,94833.0,94832.0,2.96698943]
[1746435921488,2.44610893,94833.0,94832.0,2.96698943]
[1746435922234,2.00309718,94833.0,94832.0,2.96698943]
[1746435922453,1.94318818,94833.0,94832.0,2.96698943]
[1746435932282,2.70918218,94833.0,94832.0,2.96698943]
[1746435935817,2.29669518,94833.0,94832.0,2.96698943]
[1746435942862,1.53363518,94833.0,94832.0,2.96698943]
[1746435943056,4.23262418,94833.0,94832.0,2.96698943]
[1746435943961,4.41039266,94833.0,94832.0,2.96598943]
[1746435944193,4.41039266,94833.0,94832.0,2.05098075]
[1746435944194,4.4370895,94833.0,94832.0,2.05098075]
[1746435944627,4.41208216,94833.0,94832.0,2.05098075]
[1746435945278,4.39408216,94833.0,94832.0,2.05098075]
[1746435945729,4.40508216,94833.0,94832.0,2.04998075]
[1746435946191,4.4450895,94833.0,94832.0,2.05098075]
[1746435946551,4.4420895,94833.0,94832.0,2.04998075]
[1746435947001,4.4450895,94833.0,94832.0,2.05098075]
[1746435948456,4.41839266,94833.0,94832.0,2.05098075]
[1746435948674,4.4450895,94833.0,94832.0,2.05098075]
[1746435948885,4.39338532,94833.0,94832.0,2.05098075]
[1746435949115,4.39338532,94833.0,94832.0,2.05080154]
[1746435949575,4.40991965,94833.0,94832.0,2.05080154]
[1746435950330,4.38028134,94833.0,94832.0,2.05080154]
[1746435950531,4.40989144,94833.0,94832.0,2.05080154]
[1746435951392,4.38028134,94833.0,94832.0,2.05080154]
[1746435951617,4.40988609,94833.0,94832.0,2.05080154]
[1746435951821,4.38028134,94833.0,94832.0,2.05080154]
[1746435952021,4.409886,94833.0,94832.0,2.05080154]
[1746435952372,4.38028134,94833.0,94832.0,2.05080154]
[1746435953662,1.68129234,94833.0,94832.0,2.05080154]
[1746435953969,6.7108921,94833.0,94832.0,2.05080154]
[1746435956724,6.69435777,94833.0,94832.0,2.05080154]
[1746435957080,6.58883748,94833.0,94832.0,2.05080154]
[1746435959716,6.38575936,94833.0,94832.0,2.05080154]
[1746435961134,6.22335036,94833.0,94832.0,2.05080154]
[1746435961332,5.53786436,94833.0,94832.0,2.05080154]
[1746435963278,3.12268736,94833.0,94832.0,2.05080154]
[1746435965669,3.22820765,94833.0,94832.0,2.05080154]
[1746435966655,3.21167277,94833.0,94832.0,2.05080154]
[1746435967070,3.10615248,94833.0,94832.0,2.05180154]
[1746435967299,2.54580948,94833.0,94832.0,2.06710154]
[1746435967495,1.99484348,94833.0,94832.0,2.08220154]
[1746435967745,1.55613748,94833.0,94832.0,2.08220154]
[1746435968190,2.07252248,94833.0,94832.0,2.06710154]
[1746435968589,2.07252248,94833.0,94832.0,2.05180154]
[1746435970350,2.05798163,94833.0,94832.0,2.05180154]
[1746435970739,2.07451537,94833.0,94832.0,2.05180154]
[1746435976861,2.05798163,94833.0,94832.0,2.05180154]
[1746435978700,1.54159663,94833.0,94832.0,2.05180154]
[1746435978916,2.91574963,94833.0,94832.0,2.05180154]
[1746435979860,2.645025,94833.0,94832.0,2.05180154]
[1746435980219,1.55813,94833.0,94832.0,2.08450154]
[1746435981116,1.55513,94833.0,94832.0,2.08350154]
[1746435981473,1.53213,94833.0,94832.0,2.08450154]
[1746435982100,1.54213,94833.0,94832.0,2.08450154]
[1746435986121,1.510384,94833.0,94832.0,2.08450154]
[1746435988582,1.510384,94833.0,94832.0,2.06820154]
[1746435989503,1.510384,94833.0,94832.0,2.08320154]
[1746435991941,1.510384,94833.0,94832.0,2.06820154]
[1746435993026,1.510384,94833.0,94832.0,2.05180154]
[1746436003081,1.510384,94833.0,94832.0,2.06690154]
[1746436003933,1.05055896,94833.0,94832.0,2.08280154]
[1746436004250,1.15442583,94833.0,94832.0,2.08280154]
[1746436004520,1.49442583,94833.0,94832.0,2.08280154]
[1746436004850,1.48442583,94833.0,94832.0,2.08280154]
[1746436005228,1.49442583,94833.0,94832.0,2.08280154]
[1746436005528,1.48342583,94833.0,94832.0,2.08180154]
[1746436005722,1.48442583,94833.0,94832.0,2.08280154]
[1746436005901,1.15042583,94833.0,94832.0,2.08280154]
[1746436006342,0.73562583,94833.0,94832.0,2.08180154]
[1746436006497,1.07662583,94833.0,94832.0,2.08580154]
[1746436007059,0.74715568,94833.0,94832.0,2.08580154]
[1746436007265,0.74615568,94833.0,94832.0,2.08180154]
[1746436007478,0.75215568,94833.0,94832.0,2.08280154]
[1746436007698,1.09215568,94833.0,94832.0,2.48732183]
[1746436008308,1.07562583,94833.0,94832.0,2.48732183]
[1746436008575,1.08162583,94833.0,94832.0,2.38680154]
[1746436008976,1.08062583,94833.0,94832.0,2.38280154]
[1746436009417,1.08162583,94833.0,94832.0,2.38680154]
[1746436009735,1.08062583,94833.0,94832.0,2.38280154]
[1746436009936,1.08062583,94833.0,94832.0,2.49232183]
[1746436010183,1.07062583,94833.0,94832.0,2.49132183]
[1746436010522,1.07462583,94833.0,94832.0,2.49132183]
[1746436010946,1.07462583,94833.0,94832.0,2.38580154]
[1746436011173,1.07762583,94833.0,94832.0,2.38580154]
[1746436011282,1.09415526,94833.0,94832.0,2.38580154]
[1746436011491,1.09315526,94833.0,94832.0,2.38180154]
[1746436011694,1.09415526,94833.0,94832.0,2.38580154]
[1746436016307,1.07762583,94833.0,94832.0,2.38580154]
[1746436020607,1.09415562,94833.0,94832.0,2.38580154]
[1746436026851,1.09415562,94833.0,94832.0,2.49132183]
[1746436027046,1.07762583,94833.0,94832.0,2.49132183]
[1746436028348,1.05785705,94833.0,94832.0,2.49132183]
[1746436029412,0.70889705,94833.0,94832.0,2.49132183]
[1746436029788,0.72542685,94833.0,94832.0,2.49132183]
[1746436030322,0.72542685,94833.0,94832.0,2.38580154]
[1746436031422,0.72542685,94833.0,94832.0,2.38680154]
[1746436037476,0.70889705,94833.0,94832.0,2.38680154]
[1746436040321,0.7254262,94833.0,94832.0,2.38680154]
[1746436044344,0.7354262,94833.0,94832.0,2.38680154]
[1746436044800,0.7354262,94833.0,94832.0,2.49232183]
[1746436046231,0.7354262,94833.0,94832.0,2.54437121]
[1746436049215,0.7354262,94833.0,94832.0,2.59437121]
[1746436049629,0.71889705,94833.0,94832.0,2.59437121]
[1746436049831,0.73542485,94833.0,94832.0,2.59437121]
[1746436052423,0.10512909,94833.0,94832.0,2.93111133]
[1746436052537,0.10512909,94833.0,94832.0,2.72021206]
[1746436052538,0.04714882,94833.0,94832.0,2.72021206]
[1746436052732,0.04714882,94833.0,94832.0,2.93111133]
[1746436053147,0.04714882,94833.0,94832.0,2.92711133]
[1746436053350,0.04814882,94833.0,94832.0,2.93111133]
[1746436053592,0.04914882,94833.0,94832.0,2.93211133]
[1746436053770,0.04814882,94833.0,94832.0,2.92811133]
[1746436054221,0.05014882,94833.0,94832.0,2.93211133]
[1746436054821,0.34,94842.0,94841.0,0.06654085]
[1746436054978,0.70087703,94842.0,94841.0,0.15086947]
[1746436055180,0.49,94842.0,94841.0,0.15086947]
[1746436055364,0.50652541,94842.0,94841.0,0.15086947]
[1746436055565,0.50652541,94842.0,94841.0,0.36174873]
[1746436055819,0.50652541,94842.0,94841.0,0.35964056]
[1746436056018,0.50752541,94842.0,94841.0,0.1557613]
[1746436056232,0.50752541,94842.0,94841.0,0.15786948]
[1746436056446,0.70187703,94842.0,94841.0,0.15786948]
[1746436056702,0.70287703,94842.0,94841.0,0.16186948]
[1746436057520,0.492,94842.0,94841.0,0.16186948]
[1746436058908,0.70287703,94842.0,94841.0,0.16186948]
[1746436059443,0.71940231,94842.0,94841.0,0.27316948]
[1746436059648,0.71940231,94842.0,94841.0,0.2710613]
[1746436070842,0.16852528,94842.0,94841.0,0.48194056]
[1746436073589,0.16852528,94842.0,94841.0,0.2710613]
[1746436074620,0.16852528,94842.0,94841.0,0.48194056]
[1746436075033,0.16852528,94842.0,94841.0,0.2710613]
[1746436075492,0.16852528,94842.0,94841.0,0.48194056]
[1746436076827,0.1052784,94842.0,94841.0,0.48194056]
[1746436077259,0.1052784,94842.0,94841.0,0.2710613]
[1746436079364,0.31615543,94842.0,94841.0,0.2710613]
[1746436079724,0.1052784,94842.0,94841.0,0.2710613]
[1746436080504,0.1052784,94842.0,94841.0,0.48194056]
[1746436082226,0.1052784,94842.0,94841.0,0.2710613]
[1746436082426,0.31615543,94842.0,94841.0,0.2710613]
[1746436082832,0.1052784,94842.0,94841.0,0.2710613]
[1746436084140,0.31597985,94842.0,94841.0,0.2710613]
[1746436084366,0.10510282,94842.0,94841.0,0.2710613]
[1746436085666,0.31597985,94842.0,94841.0,0.2710613]
[1746436086487,0.10510282,94842.0,94841.0,0.2710613]
[1746436087533,0.08857754,94842.0,94841.0,0.2710613]
[1746436089378,0.29945457,94842.0,94841.0,0.2710613]
[1746436090283,0.29945457,94842.0,94841.0,0.2545613]
[1746436090903,0.29945457,94842.0,94841.0,0.2393613]
[1746436091104,0.29945457,94842.0,94841.0,0.11352045]
[1746436091105,0.31925913,94842.0,94841.0,0.11352045]
[1746436091312,0.33578352,94842.0,94841.0,0.06510831]
[1746436091725,0.33578352,94842.0,94841.0,0.363]
[1746436091726,0.35168352,94842.0,94841.0,0.363]
[1746436091929,0.36728352,94842.0,94841.0,0.313]
[1746436092841,0.35168352,94842.0,94841.0,0.313]
[1746436093021,0.33578352,94842.0,94841.0,0.363]
[1746436093224,0.33578352,94842.0,94841.0,0.40429421]
[1746436093586,0.35128352,94842.0,94841.0,0.40429421]
[1746436094032,0.35128352,94842.0,94841.0,0.35429421]
[1746436094237,0.35128352,94842.0,94841.0,0.40429421]
[1746436094392,0.70768352,94842.0,94841.0,0.313]
[1746436094661,0.70768352,94842.0,94841.0,0.363]
[1746436095463,0.67578352,94842.0,94841.0,0.363]
[1746436100378,0.67578352,94842.0,94841.0,0.46068444]
[1746436101233,0.67578352,94842.0,94841.0,0.50675288]
[1746436102711,0.70748352,94842.0,94841.0,0.50675288]
[1746436103022,0.70748352,94842.0,94841.0,0.40901055]
[1746436103225,0.70748352,94842.0,94841.0,0.313]
[1746436103428,0.70748352,94842.0,94841.0,0.011]
[1746436103632,0.77090598,94842.0,94841.0,0.012]
[1746436104058,0.2108837,94839.0,94838.0,0.04994211]
[1746436104255,0.72405175,94839.0,94838.0,0.01774211]
[1746436104459,0.55089705,94833.0,94832.0,2.04980154]
[1746436104661,0.72087965,94833.0,94832.0,2.03050154]
[1746436104875,0.72087965,94833.0,94832.0,2.02920154]
[1746436105263,0.71200161,94833.0,94832.0,2.02920154]
[1746436105487,0.71200161,94833.0,94832.0,2.01360154]
[1746436106327,0.71200161,94833.0,94832.0,2.01560154]
[1746436107060,0.71600161,94833.0,94832.0,2.01660154]
[1746436109389,1.12980161,94833.0,94832.0,2.01660154]
[1746436109503,1.14633229,94833.0,94832.0,2.01660154]
[1746436111753,1.25185258,94833.0,94832.0,2.01660154]
[1746436112355,1.14633229,94833.0,94832.0,2.01660154]
[1746436113050,1.49521229,94833.0,94832.0,2.01660154]
[1746436128110,1.49391229,94833.0,94832.0,2.01660154]
[1746436128709,1.47738161,94833.0,94832.0,2.01660154]
[1746436136075,1.47738161,94833.0,94832.0,2.01125036]
[1746436137687,1.50703862,94833.0,94832.0,2.01125036]
[1746436141413,1.5235706,94833.0,94832.0,2.01125036]
[1746436146724,1.50703862,94833.0,94832.0,2.01125036]
[1746436149531,1.52357014,94833.0,94832.0,2.01125036]
[1746436150895,1.52357014,94833.0,94832.0,2.01107478]
[1746436155248,1.52357014,94833.0,94832.0,1.99912708]
[1746436156699,1.50376558,94833.0,94832.0,1.99912708]
[1746436156978,1.48723406,94833.0,94832.0,1.99912708]
[1746436157202,1.48723406,94833.0,94832.0,2.02982708]
[1746436159816,1.50376659,94833.0,94832.0,2.02982708]
[1746436162603,1.60928688,94833.0,94832.0,2.02982708]
[1746436162814,1.60928688,94833.0,94832.0,1.99912708]
[1746436164652,1.62908767,94833.0,94832.0,1.99912708]
[1746436168404,1.66083567,94833.0,94832.0,1.99912708]
[1746436169914,1.66083567,94833.0,94832.0,2.02972708]
[1746436170057,1.55531538,94833.0,94832.0,2.02972708]
[1746436174780,1.55531538,94833.0,94832.0,2.02546366]
[1746436175324,1.55531538,94833.0,94832.0,2.02125499]
[1746436175524,1.55531538,94833.0,94832.0,2.01815233]
[1746436177598,1.56681388,94833.0,94832.0,2.01815233]
[1746436181615,1.55531538,94833.0,94832.0,2.01439557]
[1746436187027,1.55531538,94833.0,94832.0,1.98379557]
[1746436188014,1.55531538,94833.0,94832.0,2.01539557]
[1746436200645,1.34441833,94833.0,94832.0,2.01539557]
[1746436201263,1.55531538,94833.0,94832.0,2.01539557]
[1746436202163,1.66083567,94833.0,94832.0,2.01539557]
[1746436203178,1.55531538,94833.0,94832.0,2.0121045]
[1746436214899,5.13652423,94833.0,94832.0,1.9805045]
[1746436215047,5.35021417,94833.0,94832.0,1.87456479]
[1746436215261,5.45573446,94833.0,94832.0,1.87456479]
[1746436215521,5.38551199,94833.0,94832.0,1.87456479]
[1746436216654,5.38151199,94833.0,94832.0,1.87156479]
[1746436216837,5.39551199,94833.0,94832.0,1.87256479]
[1746436217008,5.39549015,94833.0,94832.0,1.87256479]
[1746436217414,5.39249015,94833.0,94832.0,1.87156479]
[1746436217618,5.42817275,94833.0,94832.0,1.87256479]
[1746436218018,5.41717275,94833.0,94832.0,1.87256479]
[1746436218316,5.42717275,94833.0,94832.0,1.87256479]
[1746436218696,5.4437069,94833.0,94832.0,1.87256479]
[1746436219611,5.4150243,94833.0,94832.0,1.87256479]
[1746436219815,5.4437069,94833.0,94832.0,1.87256479]
[1746436222085,5.42717275,94833.0,94832.0,1.87256479]
[1746436222283,5.39849015,94833.0,94832.0,1.87256479]
[1746436223776,5.41502489,94833.0,94832.0,1.87256479]